bitfinex-derivatives/quotes_BTCF0:USTF0_20251103
["timestamp","ask_amount","ask_price","bid_price","bid_amount"]
[1762144793277,0.0024,107960.0,107950.0,0.37008582]
[1762144793474,0.02477165,107990.0,107980.0,0.05694]
[1762144793680,0.04362,107990.0,107980.0,0.20453421]
[1762144793978,0.06675316,107990.0,107980.0,0.20453421]
[1762144794482,0.06675316,107990.0,107980.0,0.29715301]
[1762144795277,0.04362,107990.0,107980.0,0.29715301]
[1762144795680,0.04362,107990.0,107980.0,0.29915301]
[1762144798180,0.04362,107990.0,107980.0,0.20653421]
[1762144799777,0.02181,107990.0,107980.0,0.29915301]
[1762144799975,0.00919997,108000.0,107990.0,0.05694]
[1762144799976,0.05281997,108000.0,107990.0,0.05694]
[1762144800192,0.04362,108000.0,107990.0,0.20453421]
[1762144800382,0.05625,108000.0,107990.0,0.20453421]
[1762144800770,0.04362,108000.0,107990.0,0.20453421]
[1762144801185,0.06318117,108000.0,107990.0,0.20453421]
[1762144801378,0.05291117,108000.0,107990.0,0.20453421]
[1762144801573,0.05291117,108000.0,107990.0,0.20553421]
[1762144802682,0.06318117,108000.0,107990.0,0.20553421]
[1762144802886,0.05291117,108000.0,107990.0,0.20553421]
[1762144804386,0.06554117,108000.0,107990.0,0.19946819]
[1762144804682,0.38650117,108000.0,107990.0,0.19946819]
[1762144804885,0.38650117,108000.0,107990.0,0.18564819]
[1762144805784,0.38650117,108000.0,107990.0,0.001]
[1762144805785,1.12802936,108000.0,107990.0,0.001]
[1762144806286,1.12802936,108000.0,107990.0,0.14252819]
[1762144806587,0.98650117,108000.0,107990.0,0.14252819]
[1762144806979,1.12802936,108000.0,107990.0,0.14252819]
[1762144807879,0.98650117,108000.0,107990.0,0.16357819]
[1762144808092,0.98650117,108000.0,107990.0,0.14252819]
[1762144808294,1.12802936,108000.0,107990.0,0.14252819]
[1762144809390,1.12802936,108000.0,107990.0,0.001]
[1762144809690,0.04362,107970.0,107960.0,0.12352701]
[1762144809883,0.04362,107970.0,107960.0,0.2650552]
[1762144810287,0.04362,107970.0,107960.0,0.3576913]
[1762144810490,0.04362,107970.0,107960.0,0.49921949]
[1762144810887,0.04362,107970.0,107960.0,0.34499638]
[1762144811191,0.04362,107970.0,107960.0,0.20346819]
[1762144811392,0.05274609,107970.0,107960.0,0.20346819]
[1762144811889,0.06537609,107970.0,107960.0,0.18964819]
[1762144812190,0.06537609,107970.0,107960.0,0.009]
[1762144812191,0.20690428,107970.0,107960.0,0.009]
[1762144812500,0.06537609,107970.0,107960.0,0.009]
[1762144812791,0.06537609,107970.0,107960.0,0.005]
[1762144812989,0.66537609,107970.0,107960.0,0.005]
[1762144813995,0.04793,107950.0,107940.0,0.04312]
[1762144814198,0.36885,107950.0,107940.0,0.04312]
[1762144815390,0.36885,107950.0,107940.0,0.04612]
[1762144816096,0.36885,107950.0,107940.0,0.04712]
[1762144816987,0.36885,107950.0,107940.0,0.04512]
[1762144817993,0.36885,107950.0,107940.0,0.04412]
[1762144818589,0.36885,107950.0,107940.0,0.05806]
[1762144818986,0.36254,107950.0,107940.0,0.05806]
[1762144819295,0.01981,107950.0,107940.0,0.28071127]
[1762144819595,0.06529733,107970.0,107960.0,0.04491]
[1762144819894,0.38625733,107970.0,107960.0,0.04491]
[1762144820602,0.06529733,107970.0,107960.0,0.05885]
[1762144820897,0.38625733,107970.0,107960.0,0.05885]
[1762144823197,0.38625733,107970.0,107960.0,0.05985]
[1762144823389,0.38625733,107970.0,107960.0,0.001]
[1762144823390,0.98625733,107970.0,107960.0,0.001]
[1762144824588,0.38625733,107970.0,107960.0,0.02396]
[1762144825394,0.38625733,107970.0,107960.0,0.001]
[1762144825600,0.98625733,107970.0,107960.0,0.001]
[1762144825991,0.05148,107950.0,107940.0,0.04267]
[1762144826194,0.37244,107950.0,107940.0,0.04267]
[1762144827189,0.37244,107950.0,107940.0,0.05067]
[1762144827898,0.37244,107950.0,107940.0,0.04667]
[1762144828698,0.37244,107950.0,107940.0,0.06007]
[1762144829097,0.37244,107950.0,107940.0,0.05607]
[1762144829300,0.37244,107950.0,107940.0,0.05707]
[1762144832901,0.37244,107950.0,107940.0,0.02265]
[1762144833091,0.37244,107950.0,107940.0,0.04367]
[1762144835093,0.37244,107950.0,107940.0,0.001]
[1762144836502,0.37244,107950.0,107940.0,0.02265]
[1762144837897,0.37244,107950.0,107940.0,0.001]
[1762144838294,0.49841883,107950.0,107940.0,0.001]
[1762144838694,0.37244,107950.0,107940.0,0.001]
[1762144839297,0.37244,107950.0,107940.0,0.04367]
[1762144839496,0.37244,107950.0,107940.0,0.02265]
[1762144839701,0.37244,107950.0,107940.0,0.001]
[1762144839901,0.39618844,107950.0,107940.0,0.001]
[1762144841899,0.07522844,107950.0,107940.0,0.04367]
[1762144842095,0.36601,107950.0,107940.0,0.18304883]
[1762144843499,0.36601,107950.0,107940.0,0.18404883]
[1762144844903,0.36601,107950.0,107940.0,0.18504883]
[1762144846408,0.37891,107950.0,107940.0,0.18504883]
[1762144846898,0.37891,107950.0,107940.0,0.18404883]
[1762144848004,0.37891,107950.0,107940.0,0.18204883]
[1762144848807,0.36601,107950.0,107940.0,0.27470193]
[1762144849103,0.36601,107950.0,107940.0,0.18204883]
[1762144850005,0.36601,107950.0,107940.0,0.27470193]
[1762144850201,0.36601,107950.0,107940.0,0.34128894]
[1762144851000,0.04501,107950.0,107940.0,0.34128894]
[1762144851305,0.33313,107950.0,107940.0,0.34128894]
[1762144851804,0.04319,107980.0,107960.0,0.03666]
[1762144852004,0.03776042,108000.0,107970.0,0.59262183]
[1762144852208,0.0730909,108000.0,107990.0,0.18552883]
[1762144852400,0.0730909,108000.0,107990.0,0.14886883]
[1762144852603,0.02179,107980.0,107970.0,0.03001]
[1762144852803,0.0129,107970.0,107960.0,0.17191883]
[1762144853103,0.05609,107970.0,107960.0,0.17191883]
[1762144853305,0.37725,107970.0,107960.0,0.23853451]
[1762144854703,0.37725,107970.0,107960.0,0.17191883]
[1762144856612,0.05609,107960.0,107950.0,0.25214451]
[1762144856914,0.05609,107950.0,107940.0,0.18552883]
[1762144857115,0.05609,107950.0,107940.0,0.25204023]
[1762144857316,0.05609,107950.0,107940.0,0.1124514]
[1762144857515,0.05609,107950.0,107940.0,0.23843023]
[1762144858021,0.05609,107950.0,107940.0,0.23943023]
[1762144858607,0.05609,107950.0,107940.0,0.23843023]
[1762144858807,0.37721,107950.0,107940.0,0.23843023]
[1762144859810,0.38649836,107950.0,107940.0,0.23843023]
[1762144860713,0.02179,107940.0,107930.0,0.20616669]
[1762144860914,0.05581,107940.0,107930.0,0.23849669]
[1762144861216,0.05581,107940.0,107930.0,0.17198529]
[1762144861813,0.04319,107940.0,107930.0,0.18659529]
[1762144862015,0.04319,107940.0,107930.0,0.18759529]
[1762144864318,0.04319,107940.0,107930.0,0.28426673]
[1762144865822,0.04936,107940.0,107930.0,0.04800646]
[1762144866013,0.04936,107940.0,107930.0,0.00206646]
[1762144867324,0.04936,107940.0,107930.0,0.02495646]
[1762144867632,0.36419,107940.0,107930.0,0.06161646]
[1762144868129,0.36419,107940.0,107930.0,0.28426673]
[1762144868130,0.04319,107940.0,107930.0,0.28426673]
[1762144868327,0.36415,107940.0,107930.0,0.28426673]
[1762144872028,0.36415,107940.0,107930.0,0.37692893]
[1762144872325,0.37347836,107950.0,107940.0,0.05955]
[1762144872630,0.321,107950.0,107940.0,0.29974936]
[1762144872824,0.04319,107970.0,107960.0,0.05955]
[1762144873024,0.36419,107970.0,107960.0,0.20709576]
[1762144873730,0.37036,107970.0,107960.0,0.20709576]
[1762144874620,0.37955733,107970.0,107960.0,0.20709576]
[1762144878334,0.37955733,107970.0,107960.0,0.05955]
[1762144878533,0.0589,107960.0,107950.0,0.04576]
[1762144878738,0.0589,107950.0,107940.0,0.27342716]
[1762144879432,0.0589,107950.0,107940.0,0.20691576]
[1762144879630,0.0579,107950.0,107940.0,0.20691576]
[1762144880434,0.045,107950.0,107940.0,0.20991576]
[1762144881037,0.045,107950.0,107940.0,0.20691576]
[1762144881828,0.045,107950.0,107940.0,0.27342716]
[1762144882741,0.045,107950.0,107940.0,0.20691576]
[1762144883830,0.37772,107950.0,107940.0,0.0232]
[1762144884335,0.37772,107950.0,107940.0,0.18746515]
[1762144884527,0.3559,107950.0,107930.0,0.08018786]
[1762144884732,0.05905,107940.0,107930.0,0.25404301]
[1762144885640,0.05905,107940.0,107930.0,0.18753161]
[1762144886542,0.05905,107940.0,107930.0,0.18853161]
[1762144888443,0.20075515,107940.0,107930.0,0.14277161]
[1762144888742,0.20075515,107940.0,107930.0,0.00106646]
[1762144889447,0.20075515,107940.0,107930.0,0.14277161]
[1762144890050,0.20075515,107940.0,107930.0,0.16489161]
[1762144891141,0.05905,107940.0,107930.0,0.18780161]
[1762144891343,0.20075515,107940.0,107930.0,0.00106646]
[1762144891646,0.80075515,107940.0,107930.0,0.00106646]
[1762144892450,0.80075515,107940.0,107910.0,0.18673515]
[1762144892451,0.0129,107920.0,107910.0,0.18673515]
[1762144892652,0.37614,107920.0,107910.0,0.18673515]
[1762144893453,0.376208,107920.0,107910.0,0.18673515]
[1762144893955,0.376208,107920.0,107910.0,0.19073515]
[1762144894255,0.3853641,107920.0,107910.0,0.19073515]
[1762144894454,0.3853641,107920.0,107910.0,0.19673515]
[1762144894949,0.52706925,107920.0,107910.0,0.19673515]
[1762144895156,0.52706925,107920.0,107910.0,0.03212]
[1762144895352,0.52706925,107920.0,107910.0,0.19673515]
[1762144895548,0.3853641,107920.0,107910.0,0.19673515]
[1762144896056,0.3853641,107920.0,107910.0,0.21038515]
[1762144898257,0.0514641,107920.0,107910.0,0.3520903]
[1762144898554,0.52803925,107920.0,107910.0,0.19673515]
[1762144898747,0.52803925,107920.0,107910.0,0.01]
[1762144900247,0.52803925,107920.0,107910.0,0.006]
[1762144900446,0.52803925,107920.0,107910.0,0.008]
[1762144900847,0.52803925,107920.0,107910.0,0.005]
[1762144902254,0.52803925,107920.0,107910.0,0.19173515]
[1762144902450,0.52803925,107920.0,107910.0,0.05003]
[1762144902651,0.3863341,107920.0,107910.0,0.19173515]
[1762144903655,0.5402341,107920.0,107910.0,0.19173515]
[1762144903847,0.3863341,107920.0,107910.0,0.19173515]
[1762144904960,0.52803925,107920.0,107910.0,0.19173515]
[1762144907466,0.3863341,107920.0,107910.0,0.19173515]
[1762144907757,0.52803925,107920.0,107910.0,0.19173515]
[1762144913052,0.3725041,107920.0,107910.0,0.20460515]
[1762144913254,0.3725441,107920.0,107910.0,0.3463103]
[1762144913454,0.321148,107920.0,107910.0,0.3463103]
[1762144913857,0.33042767,107920.0,107910.0,0.3463103]
[1762144914256,0.35352767,107920.0,107910.0,0.3463103]
[1762144915366,0.344248,107920.0,107910.0,0.3463103]
[1762144915765,6.8e-05,107920.0,107910.0,0.3463103]
[1762144915957,6.8e-05,107920.0,107910.0,0.4389894]
[1762144916354,6.8e-05,107920.0,107910.0,0.5055008]
[1762144916759,6.8e-05,107920.0,107910.0,0.4128217]
[1762144917266,0.023168,107920.0,107910.0,0.4128217]
[1762144917566,0.044388,107920.0,107910.0,0.4128217]
[1762144917969,0.044388,107920.0,107910.0,0.3463103]
[1762144918261,0.044388,107920.0,107910.0,0.4128217]
[1762144919371,0.023168,107920.0,107910.0,0.4128217]
[1762144920366,6.8e-05,107920.0,107910.0,0.5055008]
[1762144920865,0.08092765,107950.0,107940.0,0.05715]
[1762144921068,0.08092765,107950.0,107940.0,0.19885515]
[1762144921069,0.4259928,107950.0,107940.0,0.19885515]
[1762144921268,0.40114515,107950.0,107940.0,0.19885515]
[1762144921672,0.5428503,107950.0,107940.0,0.05715]
[1762144921863,0.5428503,107950.0,107940.0,0.04428]
[1762144922071,0.5438503,107950.0,107940.0,0.04428]
[1762144922471,0.40314515,107950.0,107940.0,0.19885515]
[1762144922667,0.40071924,107950.0,107940.0,0.19885515]
[1762144924577,0.4006988,107950.0,107940.0,0.19885515]
[1762144925177,0.37669409,107950.0,107940.0,0.19885515]
[1762144925562,0.35547409,107950.0,107940.0,0.19885515]
[1762144926169,0.37669409,107950.0,107940.0,0.19885515]
[1762144927778,0.0251,107950.0,107940.0,0.3405603]
[1762144927979,0.323,107950.0,107940.0,0.3405603]
[1762144928465,0.3461,107950.0,107940.0,0.3405603]
[1762144928666,0.323,107950.0,107940.0,0.3405603]
[1762144928862,0.322,107950.0,107940.0,0.3405603]
[1762144929073,0.323,107950.0,107940.0,0.3405603]
[1762144929273,0.3461,107950.0,107940.0,0.3405603]
[1762144929875,0.322,107950.0,107940.0,0.664814]
[1762144930172,0.36532,107980.0,107970.0,0.05451]
[1762144930381,0.38907323,107980.0,107970.0,0.19621515]
[1762144931468,0.38907323,107980.0,107970.0,0.05451]
[1762144931469,0.40295323,107980.0,107970.0,0.05451]
[1762144931669,0.40295323,107980.0,107970.0,0.19621515]
[1762144931670,0.3802,107980.0,107970.0,0.19621515]
[1762144931980,0.36632,107980.0,107970.0,0.19621515]
[1762144932181,0.36732,107980.0,107970.0,0.19621515]
[1762144932478,0.37648061,107980.0,107970.0,0.19621515]
[1762144933877,0.38088061,107980.0,107970.0,0.18598515]
[1762144934477,0.38088061,107980.0,107970.0,0.04428]
[1762144935286,0.05778,107970.0,107960.0,0.04474]
[1762144937371,0.05878,107970.0,107960.0,0.04474]
[1762144937973,0.05878,107970.0,107960.0,0.05836]
[1762144938382,0.04557,107970.0,107960.0,0.1842453]
[1762144938875,0.36649,107970.0,107960.0,0.1842453]
[1762144939175,0.001,107970.0,107960.0,0.1842453]
[1762144942180,0.001,107970.0,107960.0,0.2768822]
[1762144942790,0.001,107970.0,107960.0,0.4027675]
[1762144943790,0.001,107970.0,107960.0,0.2768822]
[1762144944085,0.001,107970.0,107960.0,0.1842453]
[1762144944591,0.001,107970.0,107960.0,0.276884]
[1762144944888,0.001,107970.0,107960.0,0.1842453]
[1762144945287,0.04557,107970.0,107960.0,0.1842453]
[1762144958504,0.04557,107970.0,107960.0,0.05836]
[1762144958702,0.04557,107970.0,107960.0,0.1842453]
[1762144960203,0.001,107970.0,107960.0,0.1509967]
[1762144960405,0.001,107970.0,107960.0,0.276882]
[1762144961104,0.02317,107970.0,107960.0,0.1842453]
[1762144962307,0.04456,107970.0,107960.0,0.1842453]
[1762144964403,0.05731,107970.0,107960.0,0.04474]
[1762144964610,0.37811,107970.0,107960.0,0.04474]
[1762144964808,0.40170795,107970.0,107960.0,0.04474]
[1762144965008,0.37811,107970.0,107960.0,0.04474]
[1762144968507,0.37811,107970.0,107950.0,0.2240167]
[1762144968508,0.02159,107960.0,107950.0,0.2240167]
[1762144968705,0.05729,107960.0,107950.0,0.05333]
[1762144969102,0.08087853,107960.0,107950.0,0.05333]
[1762144970701,0.08087853,107960.0,107950.0,0.05433]
[1762144971101,0.08187853,107960.0,107950.0,0.05433]
[1762144971309,0.04517,107960.0,107950.0,0.05433]
[1762144971710,0.04517,107960.0,107950.0,0.05333]
[1762144971909,0.06873946,107960.0,107950.0,0.05333]
[1762144973410,0.04517,107960.0,107950.0,0.05333]
[1762144973916,0.06873311,107960.0,107950.0,0.05333]
[1762144974308,0.04517,107960.0,107950.0,0.05333]
[1762144974714,0.05829,107960.0,107950.0,0.0431]
[1762144976812,0.65829,107960.0,107950.0,0.0431]
[1762144982420,0.05729,107950.0,107940.0,0.1096114]
[1762144982623,0.37809,107950.0,107940.0,0.0431]
[1762144984023,0.37809,107950.0,107940.0,0.0441]
[1762144984412,0.37809,107950.0,107940.0,0.0431]
[1762144984615,0.37909,107950.0,107940.0,0.0431]
[1762144986318,0.05729,107940.0,107930.0,0.05597]
[1762144986523,0.05969,107940.0,107930.0,0.1818553]
[1762144986925,0.04657,107940.0,107930.0,0.1818553]
[1762144987531,0.05998628,107940.0,107930.0,0.0431]
[1762144988027,0.05998628,107940.0,107930.0,0.05654]
[1762144988722,0.05998628,107940.0,107930.0,0.1824253]
[1762144989224,0.05998628,107940.0,107930.0,0.0431]
[1762144990130,0.05998628,107940.0,107930.0,0.1824253]
[1762144990131,0.03165628,107940.0,107930.0,0.1824253]
[1762144990424,0.35245628,107940.0,107930.0,0.1824253]
[1762144990623,0.37503628,107940.0,107930.0,0.1824253]
[1762144991725,0.19112,107920.0,107910.0,0.01330306]
[1762144991927,0.1539,107900.0,107880.0,0.12990865]
[1762144992127,0.6007853,107890.0,107880.0,0.01344]
[1762144992320,1.2007853,107890.0,107870.0,0.01344]
[1762144992629,0.2517706,107880.0,107870.0,0.05654]
[1762144992830,0.1258853,107880.0,107870.0,0.05654]
[1762144993033,1.0046706,107880.0,107860.0,0.01352746]
[1762144993229,0.4470453,107870.0,107860.0,0.01352746]
[1762144993922,0.4470453,107870.0,107860.0,0.05662746]
[1762144994122,0.32116,107870.0,107860.0,0.05662746]
[1762144994324,0.46903993,107870.0,107860.0,0.05662746]
[1762144994731,0.4959738,107870.0,107860.0,0.05662746]
[1762144995029,1.10510992,107870.0,107860.0,0.01352746]
[1762144995228,1.10710992,107870.0,107860.0,0.01352746]
[1762144996026,1.10710992,107870.0,107840.0,0.01344]
[1762144996326,0.14787993,107860.0,107840.0,0.01344]
[1762144996531,0.1748138,107860.0,107840.0,0.01344]
[1762144997429,0.17490126,107860.0,107850.0,0.05889]
[1762144998025,0.17490126,107860.0,107850.0,0.05989]
[1762144999135,0.24850042,107860.0,107850.0,0.05989]
[1762144999822,0.24850042,107860.0,107850.0,0.01544]
[1762145000331,0.84850042,107860.0,107850.0,0.01544]
[1762145002825,0.25050042,107860.0,107850.0,0.01344]
[1762145003028,0.25150042,107860.0,107850.0,0.01344]
[1762145003537,1.08330042,107860.0,107840.0,0.01344]
[1762145003734,0.46916739,107850.0,107840.0,0.01344]
[1762145003934,0.46916739,107850.0,107840.0,0.03642]
[1762145004132,0.46916739,107850.0,107840.0,0.05789]
[1762145004638,1.30096739,107850.0,107840.0,0.01444]
[1762145005237,1.32767639,107850.0,107840.0,0.01444]
[1762145005427,1.32767639,107850.0,107840.0,0.01544]
[1762145006134,1.32767639,107850.0,107840.0,0.002]
[1762145006443,1.32767639,107850.0,107840.0,0.01519]
[1762145007531,1.47555632,107850.0,107840.0,0.002]
[1762145008737,1.32967639,107850.0,107840.0,0.01419]
[1762145008937,1.33067639,107850.0,107840.0,0.01319]
[1762145009338,1.47855632,107850.0,107830.0,0.04372688]
[1762145009638,0.14796739,107840.0,107830.0,0.04372688]
[1762145009829,0.17467639,107840.0,107830.0,0.04372688]
[1762145010938,0.17467639,107840.0,107830.0,0.04472688]
[1762145011338,0.40651639,107840.0,107830.0,0.04472688]
[1762145011638,0.40651639,107840.0,107830.0,0.04372688]
[1762145011840,0.17467639,107840.0,107830.0,0.04572688]
[1762145012040,0.17467639,107840.0,107830.0,0.06717688]
[1762145012230,0.40651639,107840.0,107830.0,0.06717688]
[1762145012631,0.17467639,107840.0,107830.0,0.06717688]
[1762145012840,0.17467639,107840.0,107830.0,0.08881688]
[1762145013040,0.40651639,107840.0,107830.0,0.08881688]
[1762145013245,0.40651639,107840.0,107830.0,0.04572688]
[1762145013544,0.40651639,107840.0,107830.0,0.04547688]
[1762145015040,0.43143471,107840.0,107830.0,0.04547688]
[1762145015437,0.43343471,107840.0,107830.0,0.04347688]
[1762145015638,0.43443471,107840.0,107830.0,0.04347688]
[1762145016439,0.5706845,107840.0,107830.0,0.06492688]
[1762145016837,0.5706845,107840.0,107830.0,0.04347688]
[1762145017042,0.19677964,107840.0,107830.0,0.04347688]
[1762145017243,0.22963386,107840.0,107830.0,0.08656688]
[1762145017434,0.46147386,107840.0,107830.0,0.08656688]
[1762145018243,0.46147386,107840.0,107830.0,0.06492688]
[1762145018445,0.46147386,107840.0,107830.0,0.08656688]
[1762145018446,0.45947386,107840.0,107830.0,0.08656688]
[1762145018644,0.22963386,107840.0,107830.0,0.08656688]
[1762145018840,0.48660642,107840.0,107830.0,0.08656688]
[1762145019144,0.4537522,107840.0,107830.0,0.08656688]
[1762145019844,0.4537522,107840.0,107830.0,0.04347688]
[1762145020039,0.2219122,107840.0,107830.0,0.04347688]
[1762145020241,0.2382625,107840.0,107830.0,0.04347688]
[1762145020443,0.4701025,107840.0,107830.0,0.04347688]
[1762145020841,0.2382625,107840.0,107830.0,0.04347688]
[1762145021041,0.17286132,107840.0,107830.0,0.04347688]
[1762145021245,0.61216736,107840.0,107830.0,0.04347688]
[1762145021637,1.2120799,107840.0,107820.0,0.04309]
[1762145021940,0.60541718,107830.0,107820.0,0.01319]
[1762145022149,0.69752736,107830.0,107800.0,0.01319]
[1762145022337,0.05784623,107810.0,107800.0,0.05628]
[1762145022537,0.52119855,107810.0,107800.0,0.05628]
[1762145022737,0.52311631,107810.0,107800.0,0.05628]
[1762145022939,0.54790553,107810.0,107800.0,0.05628]
[1762145023141,0.43063394,107810.0,107800.0,0.05628]
[1762145023346,0.52311631,107810.0,107800.0,0.05628]
[1762145023847,0.38105145,107810.0,107800.0,0.05628]
[1762145024045,0.52311631,107810.0,107800.0,0.06028]
[1762145024346,0.5726988,107810.0,107800.0,0.06228]
[1762145024537,0.2514988,107810.0,107800.0,0.20434486]
[1762145024739,0.38113145,107810.0,107800.0,0.20434486]
[1762145025044,0.37291046,107810.0,107800.0,0.20434486]
[1762145026138,0.37291046,107810.0,107800.0,0.20034486]
[1762145026343,0.38203588,107810.0,107800.0,0.05928]
[1762145026545,0.52410074,107810.0,107800.0,0.05928]
[1762145026946,0.52410074,107810.0,107800.0,0.05728]
[1762145027247,0.52410074,107810.0,107800.0,0.05828]
[1762145029644,0.59681398,107810.0,107800.0,0.05828]
[1762145031243,0.62986897,107810.0,107800.0,0.05828]
[1762145033951,0.59681398,107810.0,107800.0,0.05828]
[1762145034154,0.62986897,107810.0,107800.0,0.05828]
[1762145035760,0.62986897,107810.0,107800.0,0.05728]
[1762145036054,0.63086897,107810.0,107800.0,0.05728]
[1762145036644,0.63186897,107810.0,107800.0,0.05628]
[1762145040256,0.60703497,107810.0,107800.0,0.05628]
[1762145042057,0.65661746,107810.0,107800.0,0.05628]
[1762145043158,0.65661746,107810.0,107790.0,0.05753604]
[1762145043360,0.16697793,107800.0,107790.0,0.05753604]
[1762145043659,0.19377201,107800.0,107790.0,0.05753604]
[1762145044254,0.19377201,107800.0,107790.0,0.05853604]
[1762145044650,0.25149642,107800.0,107790.0,0.05853604]
[1762145044855,0.25149642,107800.0,107790.0,0.05953604]
[1762145045051,0.10943156,107800.0,107790.0,0.03709604]
[1762145045258,0.25149642,107800.0,107790.0,0.05988604]
[1762145045659,0.25149642,107800.0,107790.0,0.05888604]
[1762145045660,0.25249642,107800.0,107790.0,0.05888604]
[1762145046462,0.39556128,107800.0,107780.0,0.05742]
[1762145046655,0.63026644,107790.0,107780.0,0.05742]
[1762145046958,0.69003043,107790.0,107780.0,0.05742]
[1762145047159,0.65697544,107790.0,107780.0,0.05742]
[1762145047561,0.65708597,107790.0,107780.0,0.05842]
[1762145048154,0.65708597,107790.0,107780.0,0.01519]
[1762145048656,0.65708597,107790.0,107780.0,0.002]
[1762145048859,0.69411734,107790.0,107780.0,0.001]
[1762145049061,0.66106235,107790.0,107780.0,0.001]
[1762145049551,0.69411734,107790.0,107780.0,0.001]
[1762145049859,0.92607734,107790.0,107780.0,0.001]
[1762145050060,1.50109371,107790.0,107760.0,0.05777]
[1762145050257,0.14206486,107770.0,107760.0,0.05777]
[1762145050461,0.46337866,107770.0,107760.0,0.05777]
[1762145050655,0.48695239,107770.0,107760.0,0.05777]
[1762145051054,0.02364753,107770.0,107760.0,0.05877]
[1762145051359,7.38e-05,107770.0,107760.0,0.20083486]
[1762145051956,0.1939538,107770.0,107760.0,0.34289972]
[1762145052156,0.1939538,107770.0,107760.0,0.34389972]
[1762145052549,3.8e-06,107770.0,107760.0,0.66870772]
[1762145052758,0.32128,107780.0,107770.0,0.01354]
[1762145052952,0.32128,107780.0,107770.0,0.19983486]
[1762145053159,0.14206486,107800.0,107790.0,0.05777]
[1762145053360,0.48690209,107800.0,107790.0,0.05777]
[1762145053664,1.96341288,107800.0,107790.0,0.05777]
[1762145054364,1.94766907,107800.0,107790.0,0.05777]
[1762145055364,1.95166907,107800.0,107790.0,0.05777]
[1762145055966,1.95566907,107800.0,107790.0,0.05777]
[1762145056462,1.95166907,107800.0,107790.0,0.05777]
[1762145056665,1.95366907,107800.0,107790.0,0.05777]
[1762145058754,1.50606802,107800.0,107790.0,0.05777]
[1762145058954,1.50606802,107800.0,107790.0,0.18409105]
[1762145059155,1.82734802,107800.0,107790.0,0.18409105]
[1762145059360,0.32734802,107800.0,107790.0,0.18409105]
[1762145059857,0.32734802,107800.0,107790.0,0.27687325]
[1762145059858,0.00606802,107800.0,107790.0,0.27687325]
[1762145060165,0.00106802,107800.0,107790.0,0.41601105]
[1762145060360,0.00206802,107800.0,107790.0,0.18409105]
[1762145060960,0.00106802,107800.0,107790.0,0.18409105]
[1762145061165,0.00106802,107800.0,107790.0,0.18509105]
[1762145061964,0.00106802,107800.0,107790.0,0.18809105]
[1762145062152,6.802e-05,107800.0,107790.0,0.18809105]
[1762145062873,0.00912542,107810.0,107800.0,0.0577]
[1762145063063,1.82128,107820.0,107810.0,0.0577]
[1762145063263,0.32128,107820.0,107810.0,0.0577]
[1762145063567,0.33067003,107820.0,107810.0,0.0577]
[1762145063965,0.33073171,107820.0,107810.0,0.0577]
[1762145064264,6.168e-05,107820.0,107810.0,0.41590105]
[1762145064567,1.82124,107840.0,107830.0,0.0577]
[1762145064967,1.83044129,107840.0,107830.0,0.0577]
[1762145065563,1.90411343,107840.0,107830.0,0.0577]
[1762145065764,1.90811343,107840.0,107830.0,0.0577]
[1762145066069,2.03443448,107840.0,107830.0,0.0577]
[1762145066268,2.03143448,107840.0,107830.0,0.0577]
[1762145066464,2.03843448,107840.0,107820.0,0.059]
[1762145066768,0.12632105,107830.0,107820.0,0.059]
[1762145066966,1.91211343,107840.0,107830.0,0.05815]
[1762145067269,2.03843448,107840.0,107830.0,0.05815]
[1762145067470,2.03143448,107840.0,107830.0,0.05815]
[1762145067669,2.03343448,107840.0,107830.0,0.05815]
[1762145068263,1.90711343,107840.0,107830.0,0.05815]
[1762145069162,2.03343448,107840.0,107830.0,0.05815]
[1762145069667,2.03343448,107840.0,107830.0,0.01297]
[1762145069874,2.15975553,107840.0,107820.0,0.0361]
[1762145070166,2.15975553,107840.0,107810.0,0.01382]
[1762145070167,0.12632105,107830.0,107810.0,0.0361]
[1762145070360,0.44752105,107820.0,107810.0,0.01382]
[1762145070562,0.44752105,107820.0,107810.0,0.0361]
[1762145070967,0.44652105,107820.0,107800.0,0.059]
[1762145071164,0.12632105,107810.0,107800.0,0.059]
[1762145072464,0.54349798,107820.0,107810.0,0.003]
[1762145073063,0.54349798,107820.0,107800.0,0.062]
[1762145073263,0.54349798,107820.0,107810.0,0.03525]
[1762145073463,0.54449798,107820.0,107810.0,0.03525]
[1762145073862,0.54649798,107820.0,107810.0,0.03525]
[1762145074067,0.54649798,107820.0,107810.0,0.01297]
[1762145074872,0.54549798,107820.0,107810.0,0.01297]
[1762145075073,0.54549798,107820.0,107810.0,0.03525]
[1762145075771,0.54649798,107820.0,107810.0,0.01297]
[1762145078072,0.54649798,107820.0,107800.0,0.059]
[1762145078577,0.54649798,107820.0,107800.0,0.0361]
[1762145078779,0.54649798,107820.0,107800.0,0.059]
[1762145079082,0.54549798,107820.0,107800.0,0.059]
[1762145079474,0.54349798,107820.0,107810.0,0.01297]
[1762145079777,0.54349798,107820.0,107810.0,0.03525]
[1762145080568,0.56722544,107820.0,107810.0,0.03525]
[1762145080768,0.54349798,107820.0,107810.0,0.03525]
[1762145081082,0.56722566,107820.0,107810.0,0.03525]
[1762145081270,0.56822566,107820.0,107810.0,0.01297]
[1762145081468,0.57022566,107820.0,107800.0,0.059]
[1762145082466,0.57022566,107820.0,107810.0,0.03525]
[1762145082677,0.56822566,107820.0,107810.0,0.05815]
[1762145083978,0.56722566,107820.0,107810.0,0.05815]
[1762145084479,0.57022566,107820.0,107810.0,0.05815]
[1762145084679,0.57022566,107820.0,107810.0,0.01297]
[1762145085578,0.57022566,107820.0,107810.0,0.03525]
[1762145086781,0.57022566,107820.0,107810.0,0.01297]
[1762145087480,0.57022566,107820.0,107810.0,0.03579]
[1762145087877,0.57022566,107820.0,107810.0,0.01297]
[1762145088074,0.57022566,107820.0,107810.0,0.03579]
[1762145090282,0.57022566,107820.0,107810.0,0.05845]
[1762145092382,0.57022566,107820.0,107800.0,0.0593]
[1762145093976,0.56722566,107820.0,107800.0,0.0593]
[1762145094177,0.56722566,107820.0,107800.0,0.0603]
[1762145094378,0.12631736,107810.0,107800.0,0.0603]
[1762145095383,0.44751736,107810.0,107800.0,0.0593]
[1762145095686,0.44751736,107810.0,107800.0,0.0603]
[1762145096389,0.47132302,107810.0,107800.0,0.0603]
[1762145096586,0.59764038,107810.0,107790.0,0.01297]